[Event "Prague int. op"]
[Site "Prague CZE"]
[Date "2024.03.07"]
[Round "9.14"]
[White "Quintiliano Pinto, Renato Rodrigues"]
[Black "Ivanov, Mike"]
[Result "1/2-1/2"]
[ECO "E04"]
[WhiteElo "2493"]
[BlackElo "2356"]
[WhiteFideId "-1"]
[WhiteFideId "-1"]
[PlyCount "171"]
[GameId "2129404699873908"]
[EventDate "2024.02.28"]
[EventType "swiss"]
[EventRounds "9"]
[EventCountry "CZE"]
[SourceTitle "10 Days #752"]
[Source "ChessMix"]
[SourceDate "2024.03.10"]
[SourceVersion "1"]
[SourceVersionDate "2024.03.10"]
[SourceQuality "1"]
[TimeControl "40/5400+30:1800+30"]

1. d4 {[%emt 0:00:03]} Nf6 {[%emt 0:08:18]} 2. c4 {[%emt 0:00:19]} Nc6 {[%emt 0:00:11]} 3. Nf3 {[%emt 0:01:32]} e6 {[%emt 0:00:22]} 4. g3 {[%emt 0:02:25]} d5 {[%emt 0:01:05]} 5. Bg2 {[%emt 0:00:37]} dxc4 {[%emt 0:02:12]} 6. O-O {[%emt 0:00:23]} Rb8 {[%emt 0:01:02]} 7. Nc3 {[%emt 0:00:34]} b5 {[%emt 0:16:25]} 8. Ne5 {[%emt 0:00:18]} Nxe5 {[%emt 0:11:52]} 9. dxe5 {[%emt 0:00:06]} Nd7 {[%emt 0:05:09]} 10. Qc2 {[%emt 0:00:08]} Bb7 {[%emt 0:07:54]} 11. Bxb7 {[%emt 0:01:41]} Rxb7 {[%emt 0:00:01]} 12. Rd1 {[%emt 0:02:28]} Qc8 {[%emt 0:09:51]} 13. a4 {[%emt 0:28:12]} b4 {[%emt 0:03:01]} 14. Ne4 {[%emt 0:00:17]} Be7 {[%emt 0:00:05]} 15. Bf4 {[%emt 0:02:12]} O-O {[%emt 0:04:47]} 16. Qxc4 {[%emt 0:05:44]} c5 {[%emt 0:00:30]} 17. a5 {[%emt 0:08:41]} Qc6 {[%emt 0:00:29]} 18. Nd6 {[%emt 0:11:01]} Rbb8 {[%emt 0:00:55]} 19. b3 {[%emt 0:20:59]} Rfd8 {[%emt 0:06:13]} 20. Ne4 {[%emt 0:00:43]} Nf8 {[%emt 0:01:55]} 21. Bg5 {[%emt 0:03:06]} Bxg5 {[%emt 0:01:39]} 22. Nxg5 {[%emt 0:00:06]} Rd5 {[%emt 0:04:08]} 23. Rac1 {[%emt 0:02:10]} h6 {[%emt 0:05:49]} 24. Ne4 {[%emt 0:02:35]} Rxe5 {[%emt 0:01:52]} 25. Nxc5 {[%emt 0:00:10]} Rc8 {[%emt 0:01:32]} 26. Nd3 {[%emt 0:00:16]} Qxc4 {[%emt 0:00:22]} 27. Rxc4 {[%emt 0:00:05]} Rxc4 {[%emt 0:00:18]} 28. Nxe5 {[%emt 0:00:04]} Rc5 {[%emt 0:00:29]} 29. Nc4 {[%emt 0:00:18]} Rc8 {[%emt 0:02:13]} 30. Rd4 {[%emt 0:01:29]} f6 {[%emt 0:00:48]} 31. f4 {[%emt 0:00:17]} Rb8 {[%emt 0:01:19]} 32. Rd6 {[%emt 0:00:33]} Rc8 {[%emt 0:00:59]} 33. Kf2 {[%emt 0:01:18]} Rc7 {[%emt 0:01:53]} 34. Rd8 {[%emt 0:00:34]} Kf7 {[%emt 0:00:32]} 35. Rb8 {[%emt 0:00:46]} Nd7 {[%emt 0:00:08]} 36. Rxb4 {[%emt 0:00:07]} Nc5 {[%emt 0:00:12]} 37. Rb8 {[%emt 0:01:35]} Ke7 {[%emt 0:00:54]} 38. Nd2 {[%emt 0:00:56]} Nd7 {[%emt 0:00:25]} 39. Rb4 {[%emt 0:01:23]} f5 {[%emt 0:01:24]} 40. Nc4 {[%emt 0:02:19]} Nf6 {[%emt 0:00:12]} 41. Kf3 {[%emt 0:30:24]} g5 {[%emt 0:02:01]} 42. Rb8 {[%emt 0:00:00]} Nd5 {[%emt 0:06:37]} 43. Rh8 {[%emt 0:00:00]} g4+ {[%emt 0:02:27]} 44. Kg2 {[%emt 0:00:00]} Nf6 {[%emt 0:00:02]} 45. Rxh6 {[%emt 0:00:00]} Rb7 {[%emt 0:02:09]} 46. Rg6 {[%emt 0:00:00]} Ne8 {[%emt 0:01:22]} 47. Rh6 {[%emt 0:00:50]} Nf6 {[%emt 0:00:07]} 48. Rh8 {[%emt 0:01:25]} Rxb3 {[%emt 0:00:18]} 49. Ra8 {[%emt 0:01:27]} Rb7 {[%emt 0:00:19]} 50. Ne5 {[%emt 0:00:53]} Kd6 {[%emt 0:01:10]} 51. Rd8+ {[%emt 0:01:12]} Kc5 {[%emt 0:04:19]} 52. Rc8+ {[%emt 0:00:36]} Kb5 {[%emt 0:02:40]} 53. Rc6 {[%emt 0:00:06]} Re7 {[%emt 0:00:57]} 54. Rc1 {[%emt 0:00:32]} Re8 {[%emt 0:02:51]} 55. Rc7 {[%emt 0:00:56]} a6 {[%emt 0:01:36]} 56. Rb7+ {[%emt 0:00:27]} Kxa5 {[%emt 0:00:49]} 57. Nc6+ {[%emt 0:00:27]} Ka4 {[%emt 0:00:07]} 58. Rb4+ {[%emt 0:00:11]} Ka3 {[%emt 0:00:01]} 59. Rb6 {[%emt 0:00:08]} Ra8 {[%emt 0:03:41]} 60. Na5 {[%emt 0:00:28]} Nd5 {[%emt 0:04:49]} 61. Rxe6 {[%emt 0:00:07]} Kb4 {[%emt 0:00:25]} 62. Re5 {[%emt 0:00:52]} Kxa5 {[%emt 0:00:28]} 63. Rxd5+ {[%emt 0:00:07]} Kb4 {[%emt 0:00:07]} 64. Rxf5 {[%emt 0:00:06]} a5 {[%emt 0:00:11]} 65. Rf7 {[%emt 0:00:35]} a4 {[%emt 0:00:27]} 66. Rb7+ {[%emt 0:00:06]} Kc3 {[%emt 0:00:06]} 67. Rb1 {[%emt 0:00:12]} a3 {[%emt 0:03:54]} 68. h3 {[%emt 0:00:07]} Re8 {[%emt 0:00:30]} 69. hxg4 {[%emt 0:00:16]} Rxe2+ {[%emt 0:00:08]} 70. Kf3 {[%emt 0:00:03]} Rb2 {[%emt 0:00:42]} 71. Ra1 {[%emt 0:00:03]} Rb3 {[%emt 0:00:07]} 72. Ke4 {[%emt 0:00:15]} Kb2 {[%emt 0:00:35]} 73. Rxa3 {[%emt 0:00:08]} Kxa3 {[%emt 0:00:21]} 74. f5 {[%emt 0:02:00]} Rxg3 {[%emt 0:00:09]} 75. Kf4 {[%emt 0:00:02]} Rg1 {[%emt 0:00:11]} 76. f6 {[%emt 0:00:05]} Kb4 {[%emt 0:00:17]} 77. Ke5 {[%emt 0:00:12]} Re1+ {[%emt 0:01:09]} 78. Kf5 {[%emt 0:00:10]} Rf1+ {[%emt 0:00:08]} 79. Ke6 {[%emt 0:02:35]} Re1+ {[%emt 0:00:13]} 80. Kd6 {[%emt 0:00:11]} Rd1+ {[%emt 0:00:13]} 81. Ke7 {[%emt 0:00:10]} Re1+ {[%emt 0:00:15]} 82. Kf8 {[%emt 0:02:22]} Rg1 {[%emt 0:00:21]} 83. f7 {[%emt 0:00:03]} Rxg4 {[%emt 0:00:04]} 84. Ke7 {[%emt 0:00:02]} Rf4 {[%emt 0:00:07]} 85. f8=Q {[%emt 0:00:04]} Rxf8 {[%emt 0:00:07]} 86. Kxf8 {[%emt 0:00:02]} 1/2-1/2